bitfinex/quotes_ETHUSD_20211001
["timestamp","ask_amount","ask_price","bid_price","bid_amount"]
[1633073183882,0.47958317,3074.6,3074.1,3.2541067]
[1633073184082,0.93275107,3074.6,3074.1,3.2541067]
[1633073184482,1.49532435,3074.6,3074.1,3.2541067]
[1633073184683,1.294,3074.4,3074.0,0.003]
[1633073184882,0.96520347,3074.3,3074.0,0.003]
[1633073185082,0.72837611,3073.4,3073.1,0.006]
[1633073185283,3.93390611,3073.4,3073.0,0.009]
[1633073185481,3.93390611,3073.4,3072.9,3.2549882]
[1633073185482,3.75229863,3073.4,3072.9,3.2549882]
[1633073185684,2.01242088,3073.6,3072.9,3.2549882]
[1633073185685,3.25553,3074.1,3072.9,3.2549882]
[1633073185884,1.294,3073.5,3073.0,0.009]
[1633073186086,1.11438801,3073.1,3073.0,0.009]
[1633073186282,3.25618,3073.4,3073.0,0.009]
[1633073186484,8.15,3073.2,3072.0,0.006]
[1633073186684,1.158,3073.3,3072.1,0.003]
[1633073186685,4.88536,3072.6,3072.1,0.003]
[1633073186881,3.36760859,3073.1,3072.1,0.003]
[1633073186882,1.294,3072.4,3072.1,0.003]
[1633073187083,0.158,3072.9,3072.0,0.006]
[1633073187283,0.59025225,3072.5,3072.0,0.006]
[1633073187482,0.11789137,3072.6,3072.0,3.2625212]
[1633073187483,1.45389097,3072.3,3072.0,3.2625212]
[1633073187683,0.52819694,3072.2,3072.0,3.2625212]
[1633073187883,5.04328,3072.5,3072.1,0.003]
[1633073188083,1.294,3072.3,3072.1,0.003]
[1633073188289,1.07587568,3072.3,3072.1,0.003]
[1633073188484,6.51443126,3072.2,3072.1,0.003]
[1633073188688,1.36443126,3072.2,3072.1,0.003]
[1633073189084,2.81643126,3072.2,3072.0,0.006]
[1633073189284,1.52243126,3072.2,3072.0,0.006]
[1633073190686,0.80451094,3072.2,3072.0,0.006]
[1633073190886,0.80451094,3072.2,3071.6,0.006]
[1633073191690,0.82950325,3071.8,3071.6,0.006]
[1633073191889,1.72394764,3071.8,3071.7,0.09496239]
[1633073192288,1.294,3071.8,3071.1,0.003]
[1633073192489,0.158,3071.7,3071.1,0.003]
[1633073192690,1.84996661,3071.7,3070.8,0.006]
[1633073192893,1.84996661,3071.7,3069.9,0.003]
[1633073192894,1.8759537,3071.7,3070.1,0.009]
[1633073193093,6.9953094,3071.7,3071.6,0.006]
[1633073193291,10.24762711,3071.7,3071.6,0.006]
[1633073193490,3.6305448,3071.7,3070.7,4.05239467]
[1633073193692,1.2035909,3071.2,3070.8,0.012]
[1633073194093,0.61803633,3071.2,3070.8,0.012]
[1633073194291,1.73481141,3071.7,3070.8,0.012]
[1633073194493,0.158,3071.7,3070.8,0.012]
[1633073194693,0.16550505,3071.8,3070.8,3.2689575]
[1633073195092,0.16550505,3071.8,3071.4,1.08792769]
[1633073195293,0.16550505,3071.8,3070.9,0.012]
[1633073195493,0.16550505,3071.8,3071.5,0.009]
[1633073195892,0.16550505,3071.8,3071.4,0.8842111]
[1633073196291,0.16550505,3071.8,3071.4,4.1412793]
[1633073196891,0.16550505,3071.8,3071.4,3.2570682]
[1633073197094,1.294,3071.6,3071.0,0.012]
[1633073197292,0.54650938,3071.7,3071.0,0.012]
[1633073197491,0.158,3072.0,3071.5,0.04744339]
[1633073197492,0.60615503,3072.0,3071.5,0.04744339]
[1633073197693,0.9342311,3071.7,3071.5,0.04744339]
[1633073197891,0.9342311,3071.7,3071.6,0.006]
[1633073198093,2.2282311,3071.7,3071.6,0.006]
[1633073198292,1.44447236,3071.7,3071.6,0.006]
[1633073198492,1.44447236,3071.7,3070.9,0.012]
[1633073199097,0.98556193,3071.6,3070.9,0.012]
[1633073199294,1.294,3071.3,3070.9,0.012]
[1633073199494,0.98556193,3071.6,3070.9,0.012]
[1633073199693,1.0,3071.6,3070.9,0.012]
[1633073199956,1.60247236,3071.7,3070.9,0.012]
[1633073199957,1.0922311,3071.7,3070.9,0.012]
[1633073200156,0.98659982,3071.2,3070.9,0.012]
[1633073200356,0.158,3071.7,3070.9,0.012]
[1633073200755,0.93247432,3071.6,3070.9,0.012]
[1633073200955,0.158,3071.7,3070.9,0.012]
[1633073201763,1.02698438,3071.7,3071.0,1.1584304]
[1633073201958,0.158,3071.7,3071.0,1.1584304]
[1633073202163,0.158,3071.7,3071.1,0.83635002]
[1633073202558,0.0015098,3071.6,3071.2,0.009]
[1633073202958,1.294,3071.4,3071.2,0.05640559]
[1633073203160,1.08321836,3071.6,3071.2,0.05640559]
[1633073203358,1.08321836,3071.6,3071.3,0.009]
[1633073203359,1.55577819,3071.6,3071.3,0.009]
[1633073203560,0.158,3071.5,3071.3,0.009]
[1633073203759,0.3235934,3071.5,3071.3,0.009]
[1633073203957,1.1331588,3071.1,3070.6,1.00398692]
[1633073204157,0.3235934,3071.5,3070.3,4.88676]
[1633073204360,0.3235934,3071.5,3070.7,0.012]
[1633073204558,0.3235934,3071.5,3070.8,3.2578391]
[1633073204957,0.81281486,3071.0,3070.9,0.012]
[1633073205158,1.34782132,3071.4,3070.9,0.012]
[1633073205357,1.87749474,3071.4,3070.5,0.9334924]
[1633073205559,1.87749474,3071.4,3070.4,0.015]
[1633073205759,1.87749474,3071.4,3070.6,0.012]
[1633073205760,1.34782132,3071.4,3070.6,0.012]
[1633073205966,1.34782132,3071.4,3070.7,3.2577893]
[1633073205967,0.158,3071.4,3070.7,3.2577893]
[1633073206165,0.158,3071.4,3071.1,0.77649258]
[1633073206366,0.158,3071.4,3070.8,0.012]
[1633073206565,0.158,3071.4,3071.2,0.009]
[1633073206968,0.158,3071.4,3070.8,0.012]
[1633073206969,1.17781506,3071.3,3070.8,0.012]
[1633073207166,0.64442452,3071.3,3070.8,0.012]
[1633073207366,0.158,3071.4,3070.8,0.012]
[1633073207566,0.1655934,3071.5,3070.8,0.03729358]
[1633073207766,0.1655934,3071.5,3070.9,6.51353]
[1633073207968,0.1655934,3071.5,3070.9,6.52553]
[1633073208172,0.1655934,3071.5,3071.0,0.012]
[1633073208369,0.7386012,3071.5,3071.0,0.05938293]
[1633073208568,1.71608239,3071.6,3071.0,0.04738293]
[1633073208768,1.71608239,3071.6,3071.1,0.009]
[1633073208969,4.887,3071.4,3071.1,0.009]
[1633073209172,5.45128895,3071.4,3071.1,0.009]
[1633073209368,5.45128895,3071.4,3070.4,0.96895562]
[1633073209572,0.16561549,3071.5,3070.8,3.2575989]
[1633073209968,0.16561549,3071.5,3070.9,0.012]
[1633073210668,0.90493645,3071.4,3070.9,0.012]
[1633073211269,5.79191645,3071.4,3070.9,0.012]
[1633073211469,0.90493645,3071.4,3070.9,0.012]
[1633073211669,0.16561549,3071.5,3070.9,0.012]
[1633073211869,1.1679904,3071.2,3070.9,0.012]
[1633073212072,0.16561549,3071.5,3070.8,2.2695989]
[1633073212271,0.16861549,3071.5,3070.8,2.2695989]
[1633073212569,0.16861549,3071.5,3071.3,1.00723307]
[1633073212770,0.16861549,3071.5,3070.8,2.2695989]
[1633073212971,0.16861549,3071.5,3070.9,0.94201379]
[1633073213169,0.16861549,3071.5,3070.8,2.2695989]
[1633073213771,4.8898,3071.5,3070.9,3.2570345]
[1633073213972,4.8898,3071.5,3070.9,3.30440993]
[1633073214172,0.62811829,3071.4,3070.9,3.30440993]
[1633073214370,0.003,3071.5,3070.9,3.30440993]
[1633073214578,0.16862654,3071.5,3070.9,3.2570345]
[1633073215373,0.16862654,3071.5,3071.3,1.00692919]
[1633073215973,0.16862654,3071.5,3070.9,3.2570345]
[1633073216773,3.25711,3072.4,3072.0,0.80406597]
[1633073216973,0.003,3072.5,3072.1,2.7703949]
[1633073217181,0.003,3072.5,3072.2,4.92028434]
[1633073217373,0.003,3072.5,3072.1,7.39922581]
[1633073217575,0.003,3073.0,3072.4,3.25483]
[1633073217775,0.003,3073.0,3072.7,1.347782]
[1633073217975,0.003,3073.5,3072.9,3.75]
[1633073218179,0.003,3073.5,3073.4,0.87966411]
[1633073218376,0.003,3073.5,3073.4,2.15226411]
[1633073218776,0.003,3073.5,3073.4,4.47777832]
[1633073218973,0.003,3073.5,3073.4,3.47777832]
[1633073219376,0.003,3073.5,3073.4,3.60830791]
[1633073219573,0.003,3073.5,3073.4,9.10144272]
[1633073219777,0.003,3074.0,3073.4,25.32689775]
[1633073219976,0.006,3074.7,3073.7,0.054296]
[1633073220375,0.006,3074.7,3074.1,4.87945]
[1633073220577,2.486,3074.7,3074.1,5.99465]
[1633073220776,2.486,3074.7,3074.2,1.7845866]
[1633073220978,2.486,3074.7,3074.1,1.1152]
[1633073221176,0.029371,3074.5,3073.8,6.5075]
[1633073221978,2.74753723,3073.9,3073.8,3.23564197]
[1633073222979,0.98588478,3073.0,3072.9,0.006]
[1633073223377,0.98588478,3073.0,3072.5,0.009]
[1633073223582,0.98588478,3073.0,3072.1,3.2542408]
[1633073223583,1.44909924,3073.0,3072.2,0.009]
[1633073223779,4.88462,3072.8,3072.2,0.009]
[1633073223980,0.46321446,3073.0,3072.2,0.009]
[1633073224182,0.65561901,3073.4,3072.6,1.294]
[1633073224378,0.00172816,3073.8,3072.6,1.19913513]
[1633073224579,0.00172816,3073.8,3073.2,3.254507]
[1633073224982,0.00172816,3073.8,3073.3,0.003]
[1633073224983,1.05864524,3073.4,3073.3,0.003]
[1633073225778,1.15354054,3073.4,3073.3,0.003]
[1633073226378,0.0948953,3073.4,3073.3,0.003]
[1633073226779,0.00172816,3073.8,3073.4,7.3]
[1633073226979,0.00172816,3073.8,3073.5,0.80273943]
[1633073227179,0.00172816,3073.8,3073.6,2.75896761]
[1633073227381,0.00172816,3073.8,3073.7,7.54549421]
[1633073227583,0.00172816,3073.8,3073.7,14.05282421]
[1633073227780,0.00172816,3073.8,3073.7,14.34642508]
[1633073227981,0.00172816,3073.8,3073.7,6.5068]
[1633073228581,0.00172816,3073.8,3073.7,6.53773733]
[1633073228784,0.00172816,3073.8,3073.7,14.30845]
[1633073228980,0.00172816,3073.8,3073.7,6.5068]
[1633073229981,1.20771305,3073.8,3073.7,6.5068]
[1633073230185,1.20771305,3073.8,3073.7,4.11190941]
[1633073230186,9.84281232,3073.8,3073.7,4.11190941]
[1633073230382,5.65,3073.7,3073.5,0.003]
[1633073230583,8.158,3073.6,3073.5,0.003]
[1633073230781,8.158,3073.6,3072.3,3.2553763]
[1633073230782,13.63800628,3073.6,3072.3,3.2553763]
[1633073230982,4.18190555,3073.5,3072.9,0.006]
[1633073231180,4.18190555,3073.5,3072.4,0.009]
[1633073231181,0.76348816,3073.4,3072.4,0.009]
[1633073231381,0.76348816,3073.4,3072.6,0.84613957]
[1633073231382,3.25634,3073.2,3072.6,0.84613957]
[1633073231581,3.41434,3073.2,3072.6,0.84613957]
[1633073231780,3.41434,3073.2,3072.4,0.009]
[1633073231781,0.158,3073.2,3072.7,0.006]
[1633073231983,0.04741394,3073.6,3072.9,1.294]
[1633073232182,0.04741394,3073.6,3072.6,6.50968]
[1633073232382,0.04741394,3073.6,3073.0,0.006]
[1633073232589,0.04741394,3073.6,3072.7,0.006]
[1633073232785,0.85823175,3073.2,3072.6,0.006]
[1633073232983,0.85823175,3073.2,3072.4,0.009]
[1633073233185,1.39613518,3073.2,3072.4,0.009]
[1633073233386,6.28007518,3073.2,3072.4,0.009]
[1633073233584,1.39613518,3073.2,3072.4,0.009]
[1633073233784,3.25573,3073.4,3072.4,0.009]
[1633073233984,0.00160911,3073.1,3072.4,0.009]
[1633073234585,0.00160911,3073.1,3072.6,1.14940223]
[1633073234785,0.00160911,3073.1,3072.7,0.97163374]
[1633073234986,0.00160911,3073.1,3072.7,0.006]
[1633073235185,0.00160911,3073.1,3072.8,0.006]
[1633073235388,0.00160911,3073.1,3072.4,0.003]
[1633073235389,0.00160911,3073.1,3072.9,1.294]
[1633073235589,0.00160911,3073.1,3072.7,1.1576]
[1633073235788,0.00160911,3073.1,3073.0,0.006]
[1633073235988,0.00160911,3073.1,3072.8,0.006]
[1633073236388,0.00160911,3073.1,3072.7,0.71402173]
[1633073236589,0.00160911,3073.1,3072.7,0.006]
[1633073236788,0.04754878,3073.0,3072.8,0.006]
[1633073236990,0.04754878,3073.0,3072.4,0.009]
[1633073237589,4.12337388,3072.9,3072.4,0.009]
[1633073238191,3.25599,3072.9,3072.4,0.009]
[1633073239189,3.97006031,3072.9,3072.4,0.009]
[1633073239390,8.13992,3072.9,3072.4,0.009]
[1633073239590,3.25599,3072.9,3072.4,0.009]
[1633073240389,4.88424,3072.8,3072.4,0.009]
[1633073240595,4.1996646,3072.9,3072.4,0.009]
[1633073240990,3.25599,3072.9,3072.4,0.009]
[1633073241390,9.122,3074.6,3072.6,8.1]
[1633073241592,0.158,3073.8,3073.1,0.02498979]
[1633073241789,0.158,3073.8,3072.7,0.006]
[1633073241990,0.158,3073.8,3073.2,0.003]
[1633073241991,8.55,3073.7,3073.2,0.003]
[1633073242190,8.55,3073.7,3072.8,0.78603827]
[1633073242191,1.54244744,3073.8,3072.8,0.78303827]
[1633073242392,1.54244744,3073.8,3072.9,0.006]
[1633073242393,4.88407,3073.3,3072.9,0.006]
[1633073242691,5.35582137,3073.3,3072.9,0.006]
[1633073242892,0.47175137,3073.3,3072.9,0.006]
[1633073243090,3.25589,3073.4,3073.2,0.003]
[1633073243091,3.83414567,3073.4,3073.2,0.003]
[1633073243489,4.8841,3073.2,3072.9,0.88457079]
[1633073243889,4.8841,3073.2,3072.5,0.003]
[1633073243890,8.14014,3073.2,3073.0,0.009]
[1633073244092,3.25609,3073.7,3073.2,5.57872004]
[1633073244290,3.25598,3074.6,3073.9,1.35282771]
[1633073244492,0.003,3075.0,3074.0,7.92773473]
[1633073244691,0.003,3075.0,3074.0,8.02534776]
[1633073244891,0.003,3075.0,3074.0,3.14486776]
[1633073245091,0.003,3075.0,3074.9,0.99430639]
[1633073245293,0.79671272,3075.5,3074.9,0.99430639]
[1633073245294,1.4633,3076.3,3074.9,1.439]
[1633073245493,35.41968818,3076.9,3075.1,1.69929967]
[1633073245494,6.50735,3075.5,3075.1,1.69929967]
[1633073245690,6.50735,3075.5,3075.0,0.003]
[1633073245894,0.48967147,3075.3,3075.0,0.003]
[1633073246291,0.90375296,3075.1,3075.0,0.003]
[1633073246492,5.172559,3075.9,3075.2,0.012]
[1633073246691,5.172559,3075.9,3075.4,0.02420917]
[1633073246692,0.58346445,3075.7,3075.4,0.02420917]
[1633073246993,1.28,3077.2,3075.4,1.44244298]
[1633073247192,1.28,3077.2,3075.5,0.012]
[1633073247193,0.72881429,3077.2,3075.5,0.012]
[1633073247391,0.93443718,3076.5,3075.9,0.72903701]
[1633073247596,0.93443718,3076.5,3075.5,0.012]
[1633073247860,1.55262203,3076.5,3076.0,0.009]
[1633073247994,1.55262203,3076.5,3076.1,3.2522443]
[1633073248196,0.61818485,3076.5,3076.1,3.2522443]
[1633073248397,3.74512484,3076.9,3076.2,0.006]
[1633073248596,1.294,3076.6,3076.2,0.006]
[1633073248794,0.81248991,3076.8,3076.2,0.006]
[1633073248795,0.9304,3076.7,3076.2,0.006]
[1633073248996,0.158,3076.7,3075.9,0.003]
[1633073249194,0.47573359,3077.1,3076.9,0.92774201]
[1633073249392,0.47573359,3077.1,3076.9,2.19644201]
[1633073249393,0.02508931,3077.1,3076.9,2.19644201]
[1633073249597,0.02508931,3077.1,3077.0,0.003]
[1633073249795,1.31908931,3077.1,3077.0,0.003]
[1633073249993,1.47708931,3077.1,3077.0,0.003]
[1633073250199,1.47708931,3077.1,3076.3,0.006]
[1633073250200,4.87974,3076.7,3076.3,0.006]
[1633073250402,0.5443536,3076.7,3076.0,8.5]
[1633073250598,0.29066525,3077.1,3076.3,0.79351682]
[1633073250862,0.02508931,3077.1,3076.3,0.79351682]
[1633073250997,0.02508931,3077.1,3076.4,0.006]
[1633073251194,0.02508931,3077.1,3076.9,0.02496269]
[1633073251394,3.774,3077.0,3076.9,0.02496269]
[1633073251595,2.48,3077.0,3076.4,3.2519045]
[1633073251794,2.48,3077.0,3076.9,0.003]
[1633073252395,3.774,3077.0,3076.9,0.19363705]
[1633073252597,8.55,3076.9,3076.7,0.003]
[1633073252897,3.25383,3076.1,3075.6,0.003]
[1633073253100,8.28261584,3076.4,3075.6,0.003]
[1633073253101,0.68653844,3076.0,3075.6,0.003]
[1633073253296,0.68653844,3076.0,3075.2,0.006]
[1633073253297,0.158,3075.9,3075.2,0.006]
[1633073253500,0.158,3075.9,3075.4,4.941548]
[1633073253696,0.158,3075.9,3075.2,3.27755635]
[1633073253897,0.158,3075.9,3075.5,0.006]
[1633073254098,5.53463829,3076.4,3075.3,0.006]
[1633073254295,5.53463829,3076.4,3075.3,0.04069673]
[1633073254696,5.53463829,3076.4,3075.7,0.88981722]
[1633073254897,3.25504289,3076.3,3075.7,0.88981722]
[1633073255098,0.00201289,3076.3,3075.8,0.003]
[1633073255705,0.172559,3076.2,3075.8,0.003]
[1633073255900,0.172559,3076.2,3076.0,1.294]
[1633073255901,0.158,3076.2,3076.0,1.294]
[1633073256101,0.00201289,3076.3,3075.6,0.057538]
[1633073256299,0.00201289,3076.3,3076.0,6.50581]
[1633073256499,0.00201289,3076.3,3075.8,3.252297]
[1633073256699,0.00201289,3076.3,3075.7,0.003]
[1633073256700,3.37480821,3076.0,3075.7,0.003]
[1633073256899,0.158,3075.9,3075.3,0.003]
[1633073257102,0.158,3075.9,3075.6,1.294]
[1633073257297,0.158,3075.9,3075.2,0.057538]
[1633073257298,2.79679707,3076.0,3075.8,0.02416907]
[1633073257699,2.79679707,3076.0,3075.9,0.003]
[1633073257900,2.79679707,3076.0,3075.9,0.09966475]
[1633073258098,3.28311925,3076.0,3075.9,0.09966475]
[1633073258299,2.79679707,3076.0,3075.9,4.97692475]
[1633073258499,3.25274905,3076.0,3075.9,6.27092475]
[1633073258705,3.37269641,3076.0,3075.9,0.09966475]
[1633073258902,2.91674443,3076.0,3075.9,0.09966475]
[1633073259963,2.91674443,3076.0,3075.5,3.2554323]
[1633073259964,8.11114905,3075.6,3075.5,0.003]
[1633073260165,2.61020288,3075.6,3075.5,0.003]
[1633073260361,2.61020288,3075.6,3075.0,0.006]
[1633073260362,1.98549229,3075.6,3075.0,0.006]
[1633073260568,2.46302317,3075.6,3074.5,6.562928]
[1633073260767,2.46302317,3075.6,3074.9,1.12620225]
[1633073260970,2.46302317,3075.6,3074.6,0.006]
[1633073260971,2.46302317,3075.6,3074.6,0.04523443]
[1633073261167,2.46302317,3075.6,3075.0,3.2586912]
[1633073261365,2.46302317,3075.6,3075.0,3.2526912]
[1633073261565,2.46302317,3075.6,3075.1,0.003]
[1633073261964,2.46302317,3075.6,3074.7,1.06733047]
[1633073262372,2.46302317,3075.6,3075.0,3.252759]
[1633073262763,2.46302317,3075.6,3075.1,0.003]
[1633073263564,0.90110841,3075.4,3075.1,0.003]
[1633073263765,0.58906137,3075.3,3075.1,0.003]
[1633073263967,0.58906137,3075.3,3074.7,0.006]
[1633073263968,4.88065,3075.2,3074.7,0.006]
[1633073264164,3.25377,3075.0,3074.7,0.006]
[1633073264363,3.25377,3075.0,3074.6,0.006]
[1633073264563,3.25377,3075.0,3074.2,0.009]
[1633073264564,3.75316858,3075.0,3074.2,0.009]
[1633073264765,1.20983601,3075.5,3074.2,0.009]
[1633073264766,0.51325131,3075.2,3074.3,8.55]
[1633073264967,4.88042,3075.2,3074.9,0.02597345]
[1633073265165,3.2535,3075.4,3074.9,0.02597345]
[1633073265365,3.2535,3075.4,3075.1,0.009]
[1633073265563,0.158,3075.6,3075.1,0.009]
[1633073265564,0.49695699,3075.3,3075.1,0.009]
[1633073265763,0.1596524,3075.6,3075.1,0.009]
[1633073265764,0.80709688,3075.6,3075.1,0.009]
[1633073265964,0.64916772,3075.5,3075.0,0.015]
[1633073266166,0.62951212,3075.3,3075.0,0.015]
[1633073266365,4.05591731,3075.6,3075.0,0.015]
[1633073266567,3.25358,3075.5,3075.0,0.015]
[1633073266964,0.53422868,3075.3,3074.6,0.015]
[1633073267164,4.8805,3075.0,3074.4,0.018]
[1633073267363,4.8805,3075.0,3074.7,0.73286115]
[1633073267564,0.55107111,3075.0,3074.7,0.73286115]
[1633073267767,0.0016524,3075.6,3074.9,0.02493881]
[1633073268164,0.0016524,3075.6,3075.0,0.015]
[1633073268965,3.2545124,3075.6,3075.0,0.015]
[1633073269364,3.70159217,3075.6,3075.0,0.015]
[1633073269567,4.87976,3075.5,3075.0,0.015]
[1633073269766,5.60321142,3075.5,3075.0,0.015]
[1633073269965,3.25286,3075.6,3075.1,8.55]
[1633073270165,0.158,3075.7,3074.9,0.02557901]
[1633073270365,0.158,3075.7,3075.6,0.02423007]
[1633073270565,5.03804,3075.7,3075.6,0.02723007]
[1633073270767,5.03804,3075.7,3075.6,0.03623007]
[1633073270968,8.29114,3075.7,3075.6,0.03623007]
[1633073271167,0.65801816,3075.7,3075.6,0.03623007]
[1633073271367,0.158,3075.7,3075.6,0.012]
[1633073271772,0.158,3075.7,3074.8,0.02581484]
[1633073271970,0.49675511,3076.0,3075.5,0.82473915]
[1633073272170,0.158,3076.1,3075.5,0.82473915]
[1633073272171,0.57672499,3076.1,3075.5,0.82473915]
[1633073272369,0.158,3076.5,3075.6,0.012]
[1633073272969,5.03679,3076.5,3075.6,0.012]
[1633073273368,5.48788963,3076.5,3075.6,0.012]
[1633073273569,5.48788963,3076.5,3075.7,0.17468611]
[1633073273770,0.60909963,3076.5,3075.7,0.17468611]
[1633073273971,8.0,3078.2,3076.3,0.02517262]
[1633073274170,0.158,3077.6,3077.2,0.02492836]
[1633073274374,0.058,3077.5,3077.2,0.02492836]
[1633073274570,0.058,3077.5,3077.3,0.003]
[1633073274770,0.058,3077.5,3077.4,0.006]
[1633073274972,10.70702162,3077.4,3076.1,0.03002145]
[1633073275171,8.13121,3076.8,3076.3,0.8562355]
[1633073275370,0.158,3076.7,3076.3,0.8562355]
[1633073275571,0.158,3076.7,3076.4,3.94722035]
[1633073275770,0.158,3076.7,3076.4,0.006]
[1633073275971,0.158,3076.7,3076.5,0.006]
[1633073275972,0.00168372,3076.7,3076.5,0.006]
[1633073277971,0.00168372,3076.7,3076.6,8.12902608]
[1633073278171,0.00168372,3076.7,3076.5,0.006]
[1633073278372,0.00168372,3076.7,3076.6,0.003]
[1633073278571,6.43999966,3076.7,3076.6,0.003]
[1633073278774,6.59799966,3076.7,3076.0,0.009]
[1633073278971,5.56352592,3076.7,3076.0,0.10064742]
[1633073279171,5.67492406,3076.7,3076.0,0.10064742]
[1633073279371,3.2524,3077.2,3076.2,8.55]
[1633073279573,0.158,3077.1,3076.3,0.09164742]
[1633073279773,0.158,3077.0,3076.3,0.09764742]
[1633073279972,0.158,3077.0,3076.9,7.4757574]
[1633073280171,0.158,3077.0,3076.9,7.57640482]
[1633073280373,0.158,3077.0,3076.9,1.06680952]
[1633073280776,0.19973628,3077.0,3076.9,1.06680952]
[1633073281174,0.19973628,3077.0,3076.9,0.10364742]
[1633073281772,8.12993,3078.7,3077.0,8.55]
[1633073282078,8.12993,3078.7,3077.9,1.1830528]
[1633073282079,0.158,3078.7,3077.9,1.1830528]
[1633073282276,0.158,3078.7,3078.0,0.09164742]
[1633073282473,0.27157594,3079.4,3078.0,0.09764742]
[1633073282675,0.27157594,3079.4,3078.2,3.2499486]
[1633073282676,0.158,3079.1,3078.2,3.2499486]
[1633073282873,0.158,3079.1,3078.1,0.003]
[1633073282874,0.83285442,3078.8,3078.3,0.09164742]
[1633073283074,5.03359,3078.7,3078.3,0.09464742]
[1633073283273,5.03359,3078.7,3078.4,0.003]
[1633073283675,5.03359,3078.7,3078.6,0.003]
[1633073283874,6.32759,3078.7,3078.6,0.003]
[1633073284077,8.28438,3078.7,3078.6,0.003]
[1633073284281,0.158,3078.7,3078.6,0.003]
[1633073284477,0.42357594,3078.7,3078.6,0.003]
[1633073284681,1.5432268,3078.7,3078.6,0.19033857]
[1633073284876,2.8372268,3078.7,3078.6,0.19033857]
[1633073285076,2.8372268,3078.7,3077.9,0.003]
[1633073285077,8.55,3078.5,3077.9,0.003]
[1633073285279,4.87715,3078.2,3077.9,0.003]
[1633073285477,0.158,3078.1,3077.9,0.003]
[1633073286079,1.42084004,3078.0,3077.9,0.003]
[1633073286277,1.57884004,3078.0,3077.9,0.003]
[1633073286478,6.4573104,3078.0,3077.9,0.003]
[1633073289281,5.1633104,3078.0,3077.9,0.003]
[1633073289481,0.2866104,3078.0,3077.9,0.003]
[1633073289682,1.5806104,3078.0,3077.9,0.003]
[1633073289887,0.2866104,3078.0,3077.9,0.003]
[1633073290083,0.15977036,3078.0,3077.9,0.003]
[1633073290882,7.036e-05,3078.0,3077.9,5.857846]
[1633073291088,0.006,3079.4,3078.0,8.55]
[1633073291089,0.158,3079.2,3078.0,8.55]
[1633073291282,0.006,3079.4,3078.9,8.629913]
[1633073291482,0.006,3079.4,3078.9,0.02430773]
[1633073291684,0.12971461,3079.0,3078.3,0.95654438]
[1633073291885,0.12971461,3079.0,3078.4,0.87023548]
[1633073292086,0.12971461,3079.0,3078.8,3.2491178]
[1633073292283,0.12971461,3079.0,3078.9,4.22937478]
[1633073292486,0.02971461,3079.0,3078.9,0.02443029]
[1633073292684,0.02971461,3079.0,3078.8,3.2491178]
[1633073292883,0.02971461,3079.0,3078.8,3.27437257]
[1633073293283,0.02971461,3079.0,3078.8,3.2491178]
[1633073293684,1.461e-05,3079.0,3078.9,14.17567959]
[1633073293882,1.461e-05,3079.0,3078.9,12.84697231]
[1633073294084,1.461e-05,3079.0,3078.8,3.27454616]
[1633073294685,2.12685442,3078.9,3078.5,0.003]
[1633073294889,0.158,3078.8,3078.5,0.003]
[1633073295088,0.158,3078.8,3077.9,0.006]
[1633073295287,0.42357594,3078.8,3077.9,0.006]
[1633073295488,5.29889594,3078.8,3077.9,0.006]
[1633073295685,1.294,3078.4,3078.0,0.15698816]
[1633073295887,8.18018442,3078.9,3078.0,0.15698816]
[1633073295888,0.158,3078.3,3078.0,0.15698816]
[1633073296091,0.158,3078.3,3078.1,0.003]
[1633073296484,0.158,3078.3,3078.0,0.00698816]
[1633073296686,5.03372,3078.3,3078.0,0.00698816]
[1633073296885,0.00159852,3078.3,3078.0,0.00698816]
[1633073297289,1.294,3078.2,3078.0,0.00698816]
[1633073297486,0.14004295,3078.3,3078.0,0.00698816]
[1633073297689,0.14004295,3078.3,3078.1,0.003]
[1633073298089,5.01571295,3078.3,3078.0,0.00698816]
[1633073299089,2.82069146,3077.8,3077.5,0.003]
[1633073299291,1.1507,3077.7,3077.0,0.003]
[1633073299489,1.1507,3077.7,3076.8,0.003]
[1633073299688,1.1507,3077.7,3076.4,0.003]
[1633073299887,1.1507,3077.7,3076.2,0.02551573]
[1633073300089,1.1507,3077.7,3076.3,0.003]
[1633073300293,1.1507,3077.7,3076.3,0.82336943]
[1633073300294,6.02885,3077.7,3076.3,0.82336943]
[1633073300488,6.02885,3077.7,3076.3,0.006]
[1633073300688,9.28077,3077.7,3076.4,0.006]
[1633073300890,4.40262,3077.7,3076.4,0.006]
[1633073301089,1.1507,3077.7,3076.7,3.2515302]
[1633073301289,4.87782,3077.1,3076.5,0.07828285]
[1633073301490,0.9927,3077.0,3076.8,0.003]
[1633073301688,0.9927,3076.9,3076.8,3.958832]
[1633073301889,0.9927,3076.9,3076.8,0.058832]
[1633073302090,0.9927,3076.9,3076.8,0.003]
[1633073302488,0.9927,3076.9,3076.6,0.003]
[1633073302688,0.9927,3076.9,3076.7,3.2515204]
[1633073302689,1.13493514,3076.9,3076.7,3.2515204]
[1633073302893,1.13493514,3076.9,3076.6,0.003]
[1633073303087,1.13493514,3076.9,3076.2,3.27767683]
[1633073303088,1.294,3076.8,3076.3,0.003]
[1633073303289,1.13493514,3076.9,3076.3,0.003]
[1633073303290,1.1507,3076.7,3076.3,0.003]
[1633073303489,4.87881,3076.5,3076.3,0.003]
[1633073303689,1.1507,3076.4,3075.7,1.18295631]
[1633073303890,1.1507,3076.4,3076.1,0.003]
[1633073304088,1.1507,3076.4,3075.8,0.006]
[1633073304289,1.1507,3076.4,3076.1,1.294]